Cogmind - Beta 15 @@@ ROGUE MODE // 2025.06.24 @ 02:42:07 Player: Mogwok Wargfriend Result: Destroyed by 3N-A84(R) with Subdweller Machine Gun Performance ------------- Evolutions (0) 0 Regions Visited (2) 400 Robots Destroyed (27) 135 Value Destroyed (547) 547 Prototype IDs (0) 0 Alien Tech Used (0) 0 Bonus (0) 0 TOTAL SCORE: 1082 Bonus ------- None Cogmind --------- Core Integrity 0/250 Matter 278/300 Energy 83/100 System Corruption 0% Temperature Cool (0) Movement Rolling (110) Location -10/Subcaves Parts ------- > --- POWER (1) -------- (None) > --- PROPULSION (2) --- Subdweller Monowheel > --- UTILITY (2) ------ Medium Storage Unit Subdweller Optics > --- WEAPON (2) ------- Small Laser Assault Rifle > --- INVENTORY (10) --- Subdweller Power Source Wheel Subdweller Monowheel Improved Heat Sink Small Laser Light Assault Rifle Subdweller Machine Gun Mining Laser Scrap Shield Fragment (49) Peak State ------------ > --- POWER ------------ Subdweller Power Source > --- PROPULSION ------- Wheel Subdweller Monowheel > --- UTILITY ---------- Medium Storage Unit Subdweller Optics > --- WEAPON ----------- Subdweller Laser Assault Rifle > --- INVENTORY -------- Subdweller Power Source Wheel Subdweller Monowheel Improved Heat Sink Small Laser Small Laser Light Assault Rifle Subdweller Machine Gun Mining Laser Scrap Shield Fragment [Rating: 12] Favorites ----------- Power Ion Engine Engine Ion Engine Propulsion Wheel Wheel Wheel Utility Medium Storage Unit Device Seismic Detector Storage Medium Storage Unit Weapon Assault Rifle Energy Gun Small Laser Ballistic Gun Assault Rifle Build | -11 -10 -10 ------- Run | Yrd Mat Sub Slots Evolved . | . . . Power . | . . . Propulsion . | . . . Utility . | . . . Weapon . | . . . Parts Attached 23 | 7 10 6 Power 6 | 1 3 2 Engine 6 | 1 3 2 Core . | . . . Reactor . | . . . Propulsion 8 | 2 4 2 Treads . | . . . Leg . | . . . Wheel 8 | 2 4 2 Hover . | . . . Flight . | . . . Utility 4 | 2 1 1 Device 2 | 1 . 1 Storage 2 | 1 1 . Processor . | . . . Hackware . | . . . Protection . | . . . Artifact . | . . . Weapon 5 | 2 2 1 Energy Gun 3 | 1 1 1 Energy Cannon . | . . . Ballistic Gun 2 | 1 1 . Ballistic Cannon . | . . . Launcher . | . . . Special Weapon . | . . . Impact Weapon . | . . . Slashing Weapon . | . . . Piercing Weapon . | . . . Special Melee Weapon . | . . . Unidentified Prototypes . | . . . Parts Lost 6 | . 2 4 Power 3 | . 1 2 Propulsion 1 | . . 1 Utility . | . . . Weapon 2 | . 1 1 Highest Loss Streak 3 | . 2 3 To Critical Strikes . | . . . Average Backups 8 | 5 8 9 Power . | . 1 . Propulsion 3 | 3 4 2 Utility . | . . 1 Weapon 3 | 1 2 4 Tool/Special . | . . . Unused Backups 13 | . 2 11 Power 1 | . . 1 Propulsion 6 | . 1 5 Utility 1 | . . 1 Weapon 5 | . 1 4 Tool/Special . | . . . Average Slot Usage (%) 99 | . 99 99 Engine 13 | . 13 13 Wheel 28 | . 28 28 Device 13 | . 14 13 Storage 14 | . 14 14 Energy Gun 13 | . 14 13 Ballistic Gun 14 | . 14 14 Peak Build Rating 12 | 7 8 12 Average Rating 8 | 5 7 10 On Entrance 5 | . 7 8 Naked Turns . | . . . Heaviest Build 23 | 12 19 23 Greatest Support 30 | 20 20 30 Greatest Overweight (x) 1 | 1 . 1 Average Overweight (x) . | . . . Largest Inventory Capacity 10 | 8 10 10 Average Capacity 9 | 7 9 10 Most Carried 10 | 7 10 10 Average Carried 8 | 5 8 9 Final Capacity 10 | 8 10 10 Final Carried 10 | 7 10 9 Class Distribution -------------------- 58% | Mutant 41% | Scavenger-Mutant Dominant Class ---------------- Mutant | -10/Materials Scavenger-Mutant | -10/Subcaves Resources | -11 -10 -10 ----------- Run | Yrd Mat Sub Matter Collected 667 | 306 279 82 Remotely . | . . . Salvage Created 903 | 175 592 136 Parts 63 | 19 28 16 Haulers Intercepted . | . . . Recyclers Shooed . | . . . Parts Field Recycled . | . . . Retrieved Matter . | . . . Parts Self-Destructed 3 | . . 3 Prevented . | . . . Kills | -11 -10 -10 ------- Run | Yrd Mat Sub Combat Hostiles Destroyed 14 | . 10 4 Guns 14 | . 10 4 Classes Destroyed 8 | 2 5 1 Worker 4 | . 4 . Tunneler 5 | 5 . . Recycler 2 | 1 1 . Mechanic 1 | . 1 . Watcher 1 | . 1 . Swarmer 3 | . 3 . Grunt 7 | . 7 . Subdweller 4 | . . 4 Best Kill Streak 6 | 6 5 2 Combat Bots Only 2 | . 2 2 Max Kills in Single Turn 1 | 1 1 1 Gunslinging . | . . . Exploded . | . . . Melee . | . . . Uniques/NPCs Destroyed . | . . . Combat | -11 -10 -10 -------- Run | Yrd Mat Sub Hostile Shots Fired 99 | . 70 29 Missed 28 | . 21 7 Hits 71 | . 49 22 Projectile 71 | . 49 22 Critical Strikes 2 | . 2 . Damage Taken 1074 | . 571 503 Core 260 | . 129 131 Absorbed by Shields . | . . . Core Remaining (%) 100 | 100 . . Volleys Fired 94 | 12 64 18 Largest 2 | 2 2 2 Hottest 80 | 60 60 80 Shots Fired 182 | 24 126 32 Gun 182 | 24 126 32 Cannon . | . . . Launcher . | . . . Special . | . . . Kinetic 93 | 12 63 18 Thermal 89 | 12 63 14 Explosive . | . . . Electromagnetic . | . . . Robot Hit Streak 9 | 4 9 8 Robot Miss Streak 4 | 3 4 2 Penetration Max . | . . . Secondary Targets . | . . . Shots Hit Robots 111 | 12 76 23 Core Hits 46 | 7 30 9 Critical Kills . | . . . Critical Parts Destroyed . | . . . Critical Strikes . | . . . Melee Attacks . | . . . Impact . | . . . Slashing . | . . . Piercing . | . . . Sneak Attacks . | . . . Combat Hostiles . | . . . Follow-up Attacks . | . . . Damage Inflicted 1454 | 139 948 367 Guns 1454 | 139 948 367 Cannons . | . . . Explosions . | . . . Melee . | . . . Ramming . | . . . Kinetic 742 | 72 490 180 Thermal 712 | 67 458 187 Explosive . | . . . Electromagnetic . | . . . Impact . | . . . Slashing . | . . . Piercing . | . . . Highest Corruption . | . . . Average Corruption . | . . . Corruption Purged . | . . . Corruption Blocked . | . . . Overload Shots . | . . . Overflow Damage . | . . . Projectiles . | . . . Explosions . | . . . Melee . | . . . Knockbacks . | . . . Impact . | . . . Kinetic . | . . . Secondary . | . . . Self-Inflicted Damage . | . . . Shots . | . . . Rammed . | . . . Targets Rammed . | . . . Kicked . | . . . Crushed . | . . . Highest Temperature 90 | 20 90 . Average Temperature 33 | 20 35 . Received Heat Transfer 396 | . 294 102 Siege Activations . | . . . Martial Activations . | . . . Shielding Activations . | . . . Robots Disrupted . | . . . Combat Hostiles . | . . . Robots Corrupted . | . . . Combat Hostiles . | . . . Parts Fried . | . . . Impact Corruptions . | . . . Robots Melted . | . . . Combat Hostiles . | . . . Parts Melted . | . . . Heat Transferred 1400 | 150 1025 225 Parts Sabotaged . | . . . Parts Stolen . | . . . Parts Stripped . | . . . Power Chain Reactions . | . . . Alert | -11 -10 -10 ------- Run | Yrd Mat Sub Maximum Alert Level . | . . . Low Security (%) 100 | 100 100 . Level 1 . | . . . Level 2 . | . . . Level 3 . | . . . Level 4 . | . . . Level 5 . | . . . High Security . | . . . Max Security . | . . . Peak Influence 102 | 10 102 . Initial . | . . . Average 31 | 2 35 . Influence Increases 398 | 30 368 . Destroy 0b10 Robot/C 200 | . 200 . Destroy 0b10 Robot/NC 65 | 30 35 . Destroy Leader 52 | . 52 . Successful Hack 18 | . 18 . Destroy Structure 3 | . 3 . Partial Spotted 30 | . 30 . Lose Combat Pursuer 30 | . 30 . Influence Decreases 398 | 30 308 60 Entered New Map 29 | . . 29 Time Decay 349 | 30 288 31 Lost Part 20 | . 20 . Squads Dispatched 1 | . 1 . Investigation . | . . . Extermination . | . . . Reinforcement 1 | . 1 . Assault . | . . . Garrison . | . . . Intercept . | . . . Searches Triggered . | . . . Construction Impeded . | . . . Haulers Reinforced . | . . . Active Scanning Responses . | . . . Cargo Convoy Interrupts . | . . . Stealth | -11 -10 -10 --------- Run | Yrd Mat Sub Distress Signals 1 | . 1 . Communications Jammed . | . . . Distress Signals . | . . . Times Spotted 28 | . 22 6 Peak Tracking Total 5 | . 5 2 Tactical Retreats 2 | . 2 . Traps | -11 -10 -10 ------- Run | Yrd Mat Sub Traps Triggered . | . . . Indirectly . | . . . Trap Hack Attempts . | . . . Triggered . | . . . Disarmed . | . . . Reprogrammed . | . . . Reused . | . . . Traps Extracted . | . . . Installed . | . . . Triggered . | . . . Machines | -11 -10 -10 ---------- Run | Yrd Mat Sub Machines Disabled . | . . . Max in Single Turn . | . . . Machines Repaired . | . . . Machines Dismantled . | . . . Machines Sabotaged . | . . . Overloaded Fab Kills . | . . . Hacking | -11 -10 -10 --------- Run | Yrd Mat Sub Machines Accessed 8 | . 7 1 Terminals 6 | . 6 . Fabricators . | . . . Repair Stations . | . . . Recycling Units 1 | . 1 . Scanalyzers . | . . . Garrison Access . | . . . Total Hacks 22 | . 17 5 Successful 10 | . 5 5 Failed 12 | . 12 . Catastrophic 2 | . 2 . Database Lockouts . | . . . Manual 13 | . 13 . Terminals 16 | . 16 . Fabricators . | . . . Repair Stations . | . . . Recycling Units 1 | . 1 . Scanalyzers . | . . . Garrison Access . | . . . Terminal Hacks 8 | . 3 5 Record 5 | . . 5 Robot Analysis 1 | . 1 . Terminal Index 1 | . 1 . Locate Traps 1 | . 1 . Fabricator Hacks . | . . . Repair Station Hacks . | . . . Recycling Unit Hacks . | . . . Scanalyzer . | . . . Garrison Access Hacks . | . . . Unauthorized Hacks 2 | . 2 . Terminals 1 | . 1 . Operators 1 | . 1 . Fabricators . | . . . Repair Stations . | . . . Recycling Units 1 | . 1 . Reject 1 | . 1 . Scanalyzers . | . . . Garrison Access . | . . . Data Cores Recovered . | . . . Used . | . . . Hacking Detections 7 | . 7 . Full Trace Events . | . . . Feedback Events . | . . . Feedback Blocked . | . . . Robot Schematics Acquired . | . . . Robots Built . | . . . Authchips . | . . . Time . | . . . Total Robot Build Rating . | . . . Part Schematics Acquired . | . . . Parts Built . | . . . Authchips . | . . . Time . | . . . Total Part Build Rating . | . . . Parts Repaired . | . . . Time . | . . . Parts Recycled . | . . . Recycled Matter . | . . . Retrieved Matter . | . . . Retrieved Components . | . . . Parts Scanalyzed . | . . . Part Schematics Acquired . | . . . Parts Damaged . | . . . Bothacking | -11 -10 -10 ------------ Run | Yrd Mat Sub Used RIF Installer . | . . . Robots Hacked . | . . . Non-combat . | . . . Combat . | . . . Robot Hacks Applied . | . . . Relay Couplers Released . | . . . Fabnet Peak Effective % . | . . . Robots Rewired . | . . . Allies Hacked . | . . . Hacks Repelled . | . . . Allies | -11 -10 -10 -------- Run | Yrd Mat Sub Total Allies . | . . . Largest Group . | . . . Highest-Rated Group . | . . . Highest-Rated Ally . | . . . Total Orders . | . . . Ally Attacks . | . . . Total Damage . | . . . Kills . | . . . Allies Corrupted . | . . . Allies Melted . | . . . Intel | -11 -10 -10 ------- Run | Yrd Mat Sub Active Infowar (turns) 1623 | 42 1099 482 Optics 347 | . . 347 Seismic 1276 | 42 1099 135 Robot Analysis Total 1 | . 1 . Derelict Logs Recovered . | . . . Drone Launches . | . . . Drone Recoveries . | . . . Exploration | -11 -10 -10 ------------- Run | Yrd Mat Sub Turns Passed 1738 | 153 1099 486 Spaces Moved 1316 | 125 787 404 Core 16 | 16 . . Treads . | . . . Legs . | . . . Wheels 1300 | 109 787 404 Hover . | . . . Flight . | . . . Fastest Speed 50 | 50 80 80 Average Speed 83 | 80 80 92 Slowest Speed 100 | 100 80 95 Overloaded Moves . | . . . Propulsion Burnouts . | . . . Robots Hopped . | . . . Potential Cave-ins . | . . . Cave-ins Triggered . | . . . Exploration Rate (%) 33 | 5 77 19 Regions Visited 2 Branch Regions 1 Pre-discovered Areas . | . . . Known Exits Taken . | . . . Unknown Exits Taken 2 | 1 1 . Scrap Searched . | . . . Spaces Dug . | . . . Terrain Destroyed . | . . . Melee . | . . . Projectile . | . . . AOE . | . . . Terrain Rammed . | . . . Walls Destroyed . | . . . Machines Disabled . | . . . Actions | -11 -10 -10 --------- Run | Yrd Mat Sub Total 1767 | 150 1133 484 Wait 302 | . 259 43 Move 1314 | 124 786 404 Hop . | . . . Pick Up 16 | 7 5 4 Fast Attach 11 | 7 1 3 Attach 3 | . 1 2 Detach . | . . . Swap 10 | . 8 2 Drop 17 | . 9 8 Fire 94 | 12 64 18 Melee . | . . . Ram . | . . . Kick . | . . . Crush . | . . . Escape Stasis . | . . . Rewire . | . . . Trap . | . . . Miscellaneous . | . . . Route ------- -11/Scrapyard -10/Materials (discovered 3 exits: [*Mat] / [*Min] / *Sub) -10/Subcaves (discovered 1 exit: [*Mat]) History --------- Turn | Location | Event 7 | -11/Scrapyard | Discovered new exit (range 15) 154 | -11/Scrapyard | Entered Materials 303 | -10/Materials | Build established: Mutant 890 | -10/Materials | Discovered new exit (range 3) 1100 | -10/Materials | Core integrity fell below 50% 1182 | -10/Materials | Discovered new exit (range 15) 1246 | -10/Materials | Discovered new exit (range 10) 1253 | -10/Materials | Entered Subcaves 1293 | -10/Subcaves | Shifting Twisted Machinery released Sub. Laser 1294 | -10/Subcaves | Shifting Twisted Machinery released Sub. Power Source 1302 | -10/Subcaves | Discovered new exit (range 11) 1325 | -10/Subcaves | Visited Clippyterm 1328 | -10/Subcaves | Learned Factory trap positions 1328 | -10/Subcaves | Learned Factory stockpile data 1424 | -10/Subcaves | Build established: Scavenger-Mutant 1736 | -10/Subcaves | Core integrity fell below 20% 1739 | -10/Subcaves | Destroyed by 3N-A84(R) with Subdweller Machine Gun Last Messages --------------- 01410_ Subatomizers dissect the Disposable Heat Sink. 01469_ 4U-GTB(R) destroyed. 01471_ Ion Engine destroyed. 01481_ Acquired 17 matter. 01483_ Acquired Sub. Monowheel. 01485_ Dropped Wheel. 01485_ Acquired Sub. Power Source. 01486_ 5D-8P9(R) destroyed. 01492_ Acquired 3 matter. 01494_ Dropped Sub. Monowheel. 01497_ Acquired 10 matter. 01499_ Dropped Ion Engine. 01500_ Acquired Sub. Power Source. 01501_ Acquired 10 matter. 01539_ Subatomizers dissect the Sub. Machine Gun. 01729_ Sub. Laser destroyed. 01731_ Sub. Power Source destroyed. 01731_ Wheel destroyed. Map ----- +----------------------------------------------------+ | ?????????????????????????????????????????????????? | | ?????????????????????????????????????????????????? | | ?????????????????????????????????????????????????? | | ?????????????????????????????????????????????????? | | ?????????????????????????????????????????????????? | | ?????????????????????????????????????????????????? | | ?????????????????????????????????????????????????? | | ?????????????????????????????????????????????????? | | ?????????????????????????????????????????#######?? | | ?????????????????????????????????????????#"""""#?? | | ???????????????????????????????????####??#""X""#?? | | ???????????????????????????????????# ###" "#?? | | ???????????????????????????????????# #### ###?? | | ????????????????????????????????????# ### ##??? | | ????????????????????????????????????# ##?? | | ????????????????????????????????????## ### | | ?????????????????????????????????????# ## | | ?????????????????????????????????????# | | ?????????????????????????#####???????# | | ?????????????????????????# #???????# | | ???# ????????????????????# #????????# | | ??? ??????#####??????## ##????????## | | ????# ##??## ?????## #?????????## | | ?????? ?# ?????# #####?#####" ### | | ????????? # ????# ### """""* #?## | | ??????????## ???###@ """ ##?## | | ?????????## ??## ##RR " = #?## | | ?????????# ### ## ####### ## #?# | | ????????????#?## ##?????# ## ##?## | | ????????# # # #??##??#""#####???## | | ?????????# ## "#"##""#????????# | | ?????????# "#????????# | | ?????????# ## """#???????## | | ?????????#???### ### ""#????????? | | ???????????????##### #??? "#????????? | | ???????????????????# ##?? < ##" ??????? | | ???????????????????# ###??? #? ? ??????? | | ??????????????????## ### #???? ????????????? | | ?????????????????## #?###????## #????????????? | | ?????????????????# ##????????###?????????????? | | ?????????????????# #????????????????????????? | | ?????????????????# #????????????####????????? | | ?????????????????# #######??????# #????????? | | ?????????????????# ##????## ##???????? | | ?????????????????# ##??## ###?????? | | ?????????????????## #### ##????? | | ??????????????????## #????? | | ???????????????????## #????? | | ????????????????????# # # #####????? | | ????????????????????### #### #????????? | +----------------------------------------------------+ Best States ------------- Heat Dissipation 25 Energy Generation 15 Energy Capacity 250 Matter Stores 300 Matter Capacity 300 Sight Range 21 Terrain Scan Density 10 Evasion (%) 44 Item Schematics ----------------- None Robot Schematics ------------------ None Fabricated ------------ Nothing Repaired ---------- Nothing Alien Tech Used ----------------- None Achievements -------------- None Challenges ------------ None Game ------ Seed AlertReflexAutopenetrator Manual? 0 Play Time 00:17:13 Cumulative 231.3 hours Start 2025.06.24 @ 02:27:58 End 2025.06.24 @ 02:42:07 Sessions 1 Manual Loads 0 Difficulty Rogue Special Mode None Game No. 221 Rogue 221 Adventurer 0 Explorer 0 Win Type - Total 1 Types 1/0/0/0/0/0/0/0/0/0 Lore% 58 Gallery% 60 Achievement% 47 Wizard Run 0 Options --------- Layout 2 ASCII 1 Keyboard 1 Movement Numpad Keybinds 0 Fullscreen 2 Font 32/TamsynBold Map View 50x44 Zoom Use 0% Tactical HUD 1 Map Filters NONE Filters NONE Steam 1 RUN: 0436d4a5-be43-4593-a95a-f99fea38ded8